fUSD/lending_fUSD_20260401
["ID","MTS","AMOUNT","RATE_DAILY","PERIOD"]
[419246227,1775043041322,-239703.5858515,0.00013688,2]
[419246228,1775043041332,-151.0,0.00013688,2]
[419246229,1775043041342,-151.0,0.00013688,2]
[419246230,1775043041352,-151.0,0.00013688,2]
[419246231,1775043041362,-251.335443,0.00013688,2]
[419246232,1775043041373,-229.0562347,0.0001369,2]
[419246233,1775043041383,-12308.34239627,0.00013697,2]
[419246234,1775043041393,-500.0,0.00013698,2]
[419246235,1775043041404,-381.74,0.00013699,2]
[419246236,1775043041414,-166.66,0.00013699,2]
[419246237,1775043041424,-200.0,0.00013699,5]
[419246238,1775043041434,-200.0,0.00013699,5]
[419246239,1775043041444,-200.0,0.00013699,5]
[419246240,1775043041454,-200.0,0.00013699,5]
[419246241,1775043041464,-200.0,0.00013699,5]
[419246242,1775043041474,-200.0,0.00013699,5]
[419246243,1775043041484,-200.0,0.00013699,5]
[419246244,1775043041493,-200.0,0.00013699,5]
[419246245,1775043041503,-200.0,0.00013699,5]
[419246246,1775043041512,-317.747998,0.00013699,5]
[419246247,1775043041522,-358.49657185,0.00013699,2]
[419246248,1775043041532,-500.0,0.00013699,2]
[419246249,1775043041544,-264.52314394,0.00013699,2]
[419246250,1775043041555,-500.37557038,0.00013699,2]
[419246251,1775043041564,-342.86927072,0.00013699,2]
[419246252,1775043041574,-500.0,0.00013699,2]
[419246253,1775043041584,-500.0,0.00013699,2]
[419246254,1775043041595,-500.0,0.00013699,2]
[419246255,1775043041605,-275.71340123,0.00013699,2]
[419246256,1775043041615,-500.0,0.00013699,2]
[419246257,1775043041625,-500.0,0.00013699,2]
[419246258,1775043041637,-500.0,0.00013699,2]
[419246259,1775043041647,-500.0,0.00013699,2]
[419246260,1775043041657,-500.0,0.00013699,2]
[419246261,1775043041667,-500.0,0.00013699,2]
[419246262,1775043041676,-500.0,0.00013699,2]
[419246263,1775043041686,-312.57026801,0.00013699,2]
[419246264,1775043041696,-509.88873086,0.00013699,2]
[419246265,1775043041705,-407.11835433,0.00013699,2]
[419246266,1775043041715,-280.673637,0.00013711,2]
[419246267,1775043041724,-151.0,0.00013717,2]
[419246268,1775043041734,-151.0,0.00013717,2]
[419246269,1775043041743,-14877.74,0.0001372,2]
[419246270,1775043041753,-180.25,0.0001372,2]
[419246271,1775043041763,-1613.0,0.00013723,2]
[419246272,1775043041772,-6266.32810745,0.00013736,2]
[419246273,1775043041782,-640.12180256,0.00013758,2]
[419246274,1775043041792,-157.11,0.00013766,2]
[419246275,1775043041803,-151.0,0.00013773,2]
[419246276,1775043041813,-151.0,0.00013773,2]
[419246277,1775043041823,-70443.4066182,0.00013773,2]
[419246278,1775043041833,-166.66,0.00013836,2]
[419246279,1775043041844,-30552.5677271,0.00013839,2]
[419246280,1775043041854,-166.66,0.00013973,2]
[419246281,1775043041865,-2000.0,0.0001406,2]
[419246282,1775043041876,-166.66,0.0001411,2]
[419246283,1775043041885,-500.0,0.0001411,2]
[419246284,1775043041895,-180.148262,0.00014172,7]
[419246285,1775043041905,-640.12180256,0.00014186,2]
[419246286,1775043041914,-250.204779,0.00014194,7]
[419246287,1775043041924,-254.063685,0.00014194,7]
[419246288,1775043041934,-732.9543691,0.00014201,2]
[419246289,1775043041944,-166.66,0.00014247,2]
[419246290,1775043041954,-1000.0,0.00014247,2]
[419246291,1775043041964,-367.40868416,0.00014247,2]
[419246292,1775043041973,-1000.0,0.00014247,2]
[419246293,1775043041982,-298.21038318,0.00014247,2]
[419246294,1775043041992,-12308.34239627,0.00014247,2]
[419246295,1775043042003,-1408.03,0.00014344,2]
[419246296,1775043042012,-44452.9885312,0.00014365,2]
[419246297,1775043042022,-381.74,0.00014384,2]
[419246298,1775043042031,-166.66,0.00014384,2]
[419246299,1775043042042,-2000.0,0.000145,2]
[419246300,1775043042052,-346.82,0.00014546,2]
[419246301,1775043042063,-640.12180256,0.00014615,2]
[419246302,1775043042073,-346.81653029,0.00014652,2]
[419246303,1775043042083,-856.0,0.00014685,5]
[419246304,1775043042092,-677.0,0.00014685,5]
[419246305,1775043042104,-161.29,0.00014711,2]
[419246306,1775043042113,-157.11,0.00014749,2]
[419246307,1775043042123,-1500.0,0.00014795,2]
[419246308,1775043042133,-379.93134742,0.00014795,2]
[419246309,1775043042143,-12308.34239627,0.00014798,2]
[419246310,1775043042153,-404.3113,0.000148,22]
[419246311,1775043042163,-9918.80245,0.00014839,2]
[419246312,1775043042172,-2972.8917862,0.00014868,2]
[419246313,1775043042184,-1232.0628577,0.00014871,2]
[419246314,1775043042194,-4635.64,0.00014879,2]
[419246315,1775043042203,-500.0,0.00014984,2]
[419246316,1775043042213,-300.0,0.00015,2]
[419246317,1775043042224,-160.0,0.00015,2]
[419246318,1775043042233,-640.12180256,0.00015043,2]
[419246319,1775043042243,-381.74,0.00015068,2]
[419246320,1775043042252,-3224.665,0.00015086,2]
[419246321,1775043042262,-213.905,0.00015086,2]
[419246322,1775043042272,-310.87,0.0001509,2]
[419246323,1775043042282,-2258.0,0.00015096,2]
[419246324,1775043042291,-150.0,0.00015124,2]
[419246326,1775043042302,-151.0,0.00015131,2]
[419246327,1775043042313,-151.0,0.00015131,2]
[419246328,1775043042324,-151.0,0.00015131,2]
[419246329,1775043042334,-239703.5858515,0.00015131,2]
[419246330,1775043042344,-517.38892252,0.00015179,2]
[419246331,1775043042354,-177.79390293,0.00015197,2]
[419246332,1775043042364,-150.0,0.00015198,2]
[419246333,1775043042373,-151.0,0.00015199,2]
[419246334,1775043042382,-151.0,0.00015199,2]
[419246335,1775043042392,-578.20924308,0.00015199,2]
[419246336,1775043042402,-500.0,0.00015199,2]
[419246337,1775043042411,-201.93286099,0.00015199,2]
[419246338,1775043042421,-1377.42282659,0.00015199,2]
[419246339,1775043042431,-200.0,0.00015199,2]
[419246340,1775043042440,-500.0,0.00015199,2]
[419246341,1775043042450,-500.0,0.00015199,2]
[419246342,1775043042460,-9211.34798985,0.00015199,2]
[419246344,1775043042469,-500.0,0.00015199,2]
[419246346,1775043042479,-500.0,0.00015199,2]
[419246348,1775043042488,-500.0,0.00015199,2]
[419246350,1775043042499,-500.0,0.00015199,2]
[419246351,1775043042509,-500.0,0.00015199,2]
[419246352,1775043042518,-500.0,0.00015199,2]
[419246354,1775043042528,-500.0,0.00015199,2]
[419246356,1775043042537,-500.0,0.00015199,2]
[419246358,1775043042548,-500.0,0.00015199,2]
[419246360,1775043042558,-500.0,0.00015199,2]
[419246362,1775043042567,-500.0,0.00015199,2]
[419246364,1775043042577,-500.0,0.00015199,2]
[419246366,1775043042586,-500.0,0.00015199,2]
[419246368,1775043042596,-500.0,0.00015199,2]
[419246370,1775043042605,-500.0,0.00015199,2]
[419246372,1775043042615,-200.0,0.00015199,2]
[419246374,1775043042625,-500.0,0.00015199,2]
[419246377,1775043042634,-500.0,0.00015199,2]
[419246379,1775043042644,-500.0,0.00015199,2]
[419246380,1775043042653,-174.61919141,0.00015199,2]
[419246381,1775043042663,-500.0,0.00015199,2]
[419246382,1775043042672,-500.0,0.00015199,2]
[419246383,1775043042682,-500.0,0.00015199,2]
[419246384,1775043042692,-500.0,0.00015199,2]
[419246385,1775043042702,-500.0,0.00015199,2]
[419246386,1775043042712,-500.0,0.00015199,2]
[419246387,1775043042722,-500.0,0.00015199,2]
[419246388,1775043042731,-500.0,0.00015199,2]
[419246389,1775043042741,-151.0,0.00015199,2]
[419246390,1775043042751,-500.0,0.00015199,2]
[419246391,1775043042761,-500.0,0.00015199,2]
[419246392,1775043042772,-500.0,0.00015199,2]
[419246393,1775043042782,-500.0,0.00015199,2]
[419246394,1775043042792,-500.0,0.00015199,2]
[419246395,1775043042802,-500.0,0.00015199,2]
[419246396,1775043042811,-500.0,0.00015199,2]
[419246397,1775043042821,-500.0,0.00015199,2]
[419246398,1775043042830,-250.0,0.00015199,2]
[419246399,1775043042840,-250.0,0.00015199,2]
[419246400,1775043042850,-250.0,0.00015199,2]
[419246401,1775043042859,-250.0,0.00015199,2]
[419246402,1775043042869,-250.0,0.00015199,2]
[419246403,1775043042878,-250.0,0.00015199,2]
[419246404,1775043042888,-250.0,0.00015199,2]
[419246405,1775043042897,-250.0,0.00015199,2]
[419246406,1775043042907,-250.0,0.00015199,2]
[419246407,1775043042916,-250.0,0.00015199,2]
[419246408,1775043042925,-250.0,0.00015199,2]
[419246409,1775043042935,-279.9045709,0.00015199,2]
[419246410,1775043042945,-250.0,0.00015199,2]
[419246411,1775043042954,-262.90206542,0.00015199,2]
[419246412,1775043042963,-500.0,0.00015199,2]
[419246413,1775043042973,-500.0,0.00015199,2]
[419246414,1775043042983,-500.0,0.00015199,2]
[419246415,1775043042992,-500.0,0.00015199,2]
[419246416,1775043043002,-500.0,0.00015199,2]
[419246417,1775043043012,-10000.0,0.00015205,2]
[419246418,1775043043021,-151.0,0.00015254,2]
[419246419,1775043043031,-151.0,0.00015254,2]
[419246420,1775043043041,-500.0,0.00015254,2]
[419246421,1775043043051,-9552.16786547,0.00015254,2]
[419246422,1775043043062,-151.0,0.00015254,2]
[419246423,1775043043072,-272.62944185,0.00015254,2]
[419246424,1775043043082,-350.0,0.00015272,2]
[419246425,1775043043092,-500.0,0.00015284,6]
[419246426,1775043043104,-70443.4066182,0.00015302,2]
[419246427,1775043043114,-500.0,0.00015309,2]
[419246429,1775043043125,-9905.5980765,0.00015309,2]
[419246430,1775043043134,-151.0,0.00015309,2]
[419246431,1775043043144,-282.71673119,0.00015309,2]
[419246432,1775043043154,-7346.78,0.0001531,2]
[419246433,1775043043164,-2000.0,0.00015342,2]
[419246434,1775043043175,-12308.34239627,0.00015349,2]
[419246435,1775043043185,-500.0,0.00015364,2]
[419246436,1775043043195,-10272.10520533,0.00015364,2]
[419246437,1775043043204,-151.0,0.00015364,2]
[419246449,1775043043578,-293.17725025,0.00015364,2]
[419246450,1775043043589,-500.0,0.00015419,2]
[419246451,1775043043600,-10652.17309792,0.00015419,2]
[419246452,1775043043610,-151.0,0.00015419,2]
[419246453,1775043043619,-304.02480851,0.00015419,2]
[419246454,1775043043629,-30552.5677271,0.00015434,2]
[419246455,1775043043638,-663.3418203,0.00015453,2]
[419246456,1775043043647,-274.9103827,0.00015457,2]
[419246457,1775043043657,-2000.0,0.00015466,2]
[419246458,1775043043666,-640.12180256,0.00015472,2]
[419246459,1775043043676,-500.0,0.00015474,2]
[419246460,1775043043685,-11046.30350255,0.00015474,2]
[419246461,1775043043695,-151.0,0.00015474,2]
[419246462,1775043043705,-315.27372642,0.00015474,2]
[419246463,1775043043715,-184.95557438,0.00015502,2]
[419246464,1775043043724,-500.0,0.00015529,2]
[419246465,1775043043734,-11455.01673214,0.00015529,2]
[419246466,1775043043744,-151.0,0.00015529,2]
[419246467,1775043043755,-326.9388543,0.00015529,2]
[419246468,1775043043765,-160.0,0.00015536,2]
[419246469,1775043043775,-160.0,0.00015536,2]
[419246470,1775043043785,-500.0,0.00015584,2]
[419246471,1775043043796,-11878.85235123,0.00015584,2]
[419246472,1775043043805,-151.0,0.00015584,2]
[419246473,1775043043815,-339.03559191,0.00015584,2]
[419246474,1775043043825,-150.0,0.00015603,2]
[419246475,1775043043836,-150.0,0.00015603,2]
[419246476,1775043043846,-150.0,0.00015603,2]
[419246477,1775043043856,-150.0,0.00015603,2]
[419246478,1775043043867,-150.0,0.00015603,2]
[419246479,1775043043876,-150.0,0.00015603,2]
[419246480,1775043043886,-150.0,0.00015603,2]
[419246481,1775043043896,-235.0,0.00015603,2]
[419246482,1775043043905,-418.0,0.00015607,2]
[419246483,1775043043915,-700.0,0.00015611,2]
[419246484,1775043043926,-500.0,0.00015639,2]
[419246485,1775043043936,-11282.87022328,0.00015639,2]
[419246486,1775043043947,-151.0,0.00015639,2]
[419246487,1775043043957,-150.0,0.00015651,2]
[419246488,1775043043968,-418.0,0.0001567,2]
[419246489,1775043043978,-1111.30451991,0.0001568,2]
[419246490,1775043043987,-1004.60372975,0.0001568,2]
[419246491,1775043043997,-1098.46281478,0.0001568,2]
[419246492,1775043044008,-1030.28594002,0.0001568,2]
[419246493,1775043044018,-1057.67494644,0.0001568,2]
[419246494,1775043044028,-1089.19809608,0.0001568,2]
[419246495,1775043044038,-1068.69797848,0.0001568,2]
[419246496,1775043044048,-1148.37027772,0.0001568,2]
[419246497,1775043044060,-1116.10716506,0.0001568,2]
[419246498,1775043044070,-1089.2539631,0.0001568,2]
[419246499,1775043044079,-1143.08582154,0.0001568,2]
[419246500,1775043044089,-1011.98816629,0.0001568,2]
[419246501,1775043044100,-1033.25521512,0.0001568,2]
[419246502,1775043044110,-1096.66210568,0.0001568,2]
[419246503,1775043044120,-1093.69294741,0.0001568,2]
[419246504,1775043044130,-1027.85988992,0.0001568,2]
[419246505,1775043044140,-1023.07926088,0.0001568,2]
[419246506,1775043044150,-1064.92459644,0.0001568,2]
[419246507,1775043044160,-1113.56667351,0.0001568,2]
[419246508,1775043044171,-1100.04994135,0.0001568,2]
[419246509,1775043044182,-1090.1234443,0.0001568,2]
[419246510,1775043044192,-150.0,0.00015684,2]
[419246511,1775043044201,-150.0,0.00015684,2]
[419246512,1775043044211,-150.0,0.00015684,2]
[419246513,1775043044221,-150.0,0.00015684,2]
[419246515,1775043044231,-150.0,0.00015684,2]
[419246516,1775043044241,-150.0,0.00015684,2]
[419246517,1775043044250,-150.0,0.00015684,2]
[419246518,1775043044259,-179.0,0.00015684,2]
[419246519,1775043044269,-929.84,0.00015684,2]
[419246520,1775043044278,-448.86,0.00015684,2]
[419246521,1775043044288,-6226.69,0.00015684,2]
[419246522,1775043044298,-233.93350936,0.00015693,2]
[419246523,1775043044307,-500.0,0.00015694,2]
[419246524,1775043044317,-151.0,0.00015694,2]
[419246525,1775043044327,-150.0,0.00015696,2]
[419246526,1775043044336,-170.58768544,0.00015705,2]
[419246527,1775043044346,-150.0,0.00015723,2]
[419246528,1775043044355,-418.0,0.00015723,2]
[419246529,1775043044364,-150.0,0.00015729,2]
[419246530,1775043044373,-157.11,0.00015733,2]
[419246531,1775043044382,-1602.99,0.00015734,2]
[419246532,1775043044391,-158.95757929,0.00015736,2]
[419246533,1775043044400,-418.0,0.00015738,2]
[419246534,1775043044409,-1000.0,0.00015746,2]
[419246535,1775043044419,-1428.38747117,0.00015747,2]
[419246536,1775043044428,-200.0,0.00015747,2]
[419246537,1775043044437,-209.40437684,0.00015747,2]
[419246538,1775043044447,-200.0,0.00015747,2]
[419246539,1775043044456,-181.08010149,0.00015747,2]
[419246540,1775043044465,-290.26104003,0.00015747,2]
[419246541,1775043044474,-500.0,0.00015749,2]
[419246542,1775043044484,-151.0,0.00015749,2]
[419246543,1775043044494,-150.0,0.00015751,2]
[419246544,1775043044503,-170.03,0.00015753,2]
[419246545,1775043044513,-381.74,0.00015753,2]
[419246546,1775043044522,-150.0,0.00015769,2]
[419246547,1775043044531,-1000.0,0.00015769,2]
[419246548,1775043044541,-1000.0,0.0001577,2]
[419246549,1775043044550,-1000.0,0.00015772,2]
[419246550,1775043044561,-1000.0,0.00015772,2]
[419246551,1775043044570,-1408.03,0.00015778,2]
[419246552,1775043044579,-150.0,0.00015781,2]
[419246553,1775043044588,-1000.0,0.00015787,2]
[419246554,1775043044597,-150.0,0.00015788,2]
[419246555,1775043044606,-1000.0,0.00015788,2]
[419246556,1775043044616,-150.0,0.00015791,2]
[419246557,1775043044625,-150.0,0.00015799,2]
[419246558,1775043044634,-500.0,0.00015804,2]
[419246559,1775043044643,-151.0,0.00015804,2]
[419246560,1775043044652,-150.0,0.00015814,2]
[419246561,1775043044661,-1000.0,0.00015818,2]
[419246562,1775043044674,-150.0,0.00015822,2]
[419246563,1775043044683,-415.64054469,0.00015828,2]
[419246564,1775043044692,-268.8,0.00015836,2]
[419246565,1775043044701,-2000.0,0.0001584,2]
[419246566,1775043044711,-2000.0,0.0001584,2]
[419246567,1775043044721,-2000.0,0.0001584,2]
[419246568,1775043044730,-2000.0,0.0001584,2]
[419246569,1775043044739,-2000.0,0.0001584,2]
[419246570,1775043044748,-1000.0,0.00015843,2]
[419246571,1775043044757,-1000.0,0.00015862,2]
[419246572,1775043044766,-1000.0,0.00015865,2]
[419246573,1775043044775,-500.0,0.00015871,2]
[419246574,1775043044785,-500.0,0.00015872,2]
[419246575,1775043044794,-500.0,0.00015872,2]
[419246576,1775043044804,-1000.0,0.00015881,2]
[419246577,1775043044814,-1000.0,0.00015887,2]
[419246578,1775043044823,-1000.0,0.00015887,2]
[419246579,1775043044833,-1000.0,0.00015888,2]
[419246580,1775043044843,-500.0,0.0001589,2]
[419246581,1775043044852,-500.0,0.0001589,2]
[419246582,1775043044862,-330.83967565,0.0001589,2]
[419246583,1775043044871,-156.78867168,0.0001589,2]
[419246584,1775043044881,-150.0,0.0001589,2]
[419246585,1775043044890,-500.0,0.0001589,2]
[419246586,1775043044899,-500.0,0.0001589,2]
[419246587,1775043044908,-150.0,0.0001589,2]
[419246588,1775043044917,-500.0,0.0001589,2]
[419246589,1775043044927,-500.0,0.0001589,2]
[419246590,1775043044937,-150.0,0.0001589,2]
[419246591,1775043044946,-500.0,0.0001589,2]
[419246592,1775043044956,-500.0,0.0001589,2]
[419246593,1775043044966,-178.86340843,0.0001589,2]
[419246594,1775043044975,-500.0,0.0001589,2]
[419246595,1775043044985,-500.0,0.0001589,2]
[419246596,1775043044994,-500.0,0.0001589,2]
[419246597,1775043045003,-500.0,0.0001589,2]
[419246598,1775043045013,-500.0,0.0001589,2]
[419246599,1775043045022,-500.0,0.0001589,2]
[419246600,1775043045032,-500.0,0.0001589,2]
[419246601,1775043045042,-500.0,0.0001589,2]
[419246602,1775043045052,-500.0,0.0001589,2]
[419246603,1775043045063,-500.0,0.0001589,2]
[419246604,1775043045072,-156.13980161,0.0001589,2]
[419246605,1775043045082,-500.0,0.0001589,2]
[419246606,1775043045091,-192.86328768,0.0001589,2]
[419246607,1775043045100,-500.0,0.0001589,2]
[419246608,1775043045110,-500.0,0.0001589,2]
[419246609,1775043045119,-500.0,0.0001589,2]
[419246610,1775043045128,-500.0,0.0001589,2]
[419246611,1775043045138,-359.11494659,0.0001589,2]
[419246612,1775043045148,-150.0,0.0001589,2]
[419246613,1775043045158,-500.0,0.0001589,2]
[419246614,1775043045167,-500.0,0.0001589,2]
[419246615,1775043045177,-500.0,0.0001589,2]
[419246616,1775043045187,-500.0,0.0001589,2]
[419246617,1775043045196,-500.0,0.0001589,2]
[419246618,1775043045208,-500.0,0.0001589,2]
[419246619,1775043045217,-500.0,0.0001589,2]
[419246620,1775043045227,-500.0,0.0001589,2]
[419246621,1775043045237,-500.0,0.0001589,2]
[419246622,1775043045246,-500.0,0.0001589,2]
[419246623,1775043045256,-500.0,0.0001589,2]
[419246624,1775043045265,-500.0,0.0001589,2]
[419246625,1775043045274,-500.0,0.0001589,2]
[419246626,1775043045284,-167.18856924,0.0001589,2]
[419246627,1775043045293,-500.0,0.0001589,2]
[419246628,1775043045302,-500.0,0.0001589,2]
[419246630,1775043045313,-200.0,0.0001589,2]
[419246631,1775043045322,-150.0,0.0001589,2]
[419246632,1775043045333,-150.0,0.0001589,2]
[419246633,1775043045343,-150.0,0.0001589,2]
[419246634,1775043045353,-150.0,0.0001589,2]
[419246635,1775043045362,-150.0,0.0001589,2]
[419246636,1775043045372,-150.0,0.0001589,2]
[419246637,1775043045381,-250.0,0.0001589,2]
[419246638,1775043045390,-2000.0,0.0001589,2]
[419246639,1775043045400,-2500.0,0.0001589,2]
[419246640,1775043045410,-1000.0,0.00015893,2]
[419246641,1775043045419,-505.0,0.00015898,4]
[419246642,1775043045428,-302.0,0.000159,2]
[419246643,1775043045438,-732.9543691,0.000159,2]
[419246644,1775043045447,-640.12180256,0.000159,2]
[419246645,1775043045457,-12308.34239627,0.000159,2]
[419246646,1775043045466,-150.0,0.000159,2]
[419246647,1775043045476,-1000.0,0.00015901,2]
[419246648,1775043045485,-150.0,0.00015903,2]
[419246649,1775043045495,-150.0,0.00015905,2]
[419246650,1775043045505,-150.0,0.00015905,2]
[419246651,1775043045514,-150.0,0.00015905,2]
[419246652,1775043045523,-150.0,0.00015905,2]
[419246653,1775043045534,-150.0,0.00015905,2]
[419246654,1775043045543,-150.0,0.00015905,2]
[419246655,1775043045553,-150.0,0.00015905,2]
[419246656,1775043045562,-150.0,0.00015905,2]
[419246657,1775043045571,-200.0,0.00015905,2]
[419246658,1775043045580,-1000.0,0.0001591,2]
[419246659,1775043045589,-1000.0,0.00015923,2]
[419246660,1775043045598,-1000.0,0.00015929,2]
[419246661,1775043045607,-1000.0,0.0001593,2]
[419246662,1775043045616,-1000.0,0.00015941,2]
[419246663,1775043045626,-1000.0,0.00015941,2]
[419246664,1775043045635,-1000.0,0.00015961,2]
[419246665,1775043045645,-150.0,0.00015973,2]
[419246666,1775043045654,-418.0,0.00015974,2]
[419246667,1775043045663,-1000.0,0.00015974,2]
[419246668,1775043045672,-151.0,0.00015974,2]
[419246669,1775043045682,-151.0,0.00015974,2]
[419246670,1775043045691,-1000.0,0.0001598,2]
[419246671,1775043045700,-1000.0,0.00015981,2]
[419246672,1775043045710,-1000.0,0.00015991,2]
[419246673,1775043045719,-315.82432011,0.00015997,2]
[419246674,1775043045728,-151.0,0.00015997,2]
[419246675,1775043045738,-151.0,0.00015997,2]
[419246676,1775043045747,-267.37686588,0.00015997,2]
[419246677,1775043045757,-666.0,0.00015999,2]
[419246678,1775043045767,-500.0,0.00015999,7]
[419246679,1775043045777,-500.0,0.00015999,8]
[419246680,1775043045787,-500.0,0.00015999,9]
[419246681,1775043045796,-558.74,0.00015999,10]
[419246682,1775043045806,-250.0,0.00016,2]
[419246683,1775043045816,-250.0,0.00016,2]
[419246684,1775043045827,-358.45,0.00016,2]
[419246685,1775043045837,-1524.0,0.00016,2]
[419246686,1775043045846,-1524.0,0.00016,2]
[419246687,1775043045858,-1524.0,0.00016,2]
[419246688,1775043045868,-1524.0,0.00016,2]
[419246689,1775043045879,-1524.0,0.00016,2]
[419246690,1775043045890,-1524.0,0.00016,2]
[419246691,1775043045900,-1524.0,0.00016,2]
[419246692,1775043045909,-1524.0,0.00016,2]
[419246693,1775043045920,-1524.0,0.00016,2]
[419246694,1775043045929,-1524.0,0.00016,2]
[419246695,1775043045939,-1524.0,0.00016,2]
[419246696,1775043045948,-1524.0,0.00016,2]
[419246697,1775043045958,-1524.0,0.00016,2]
[419246698,1775043045967,-1524.0,0.00016,2]
[419246699,1775043045976,-1524.0,0.00016,2]
[419246700,1775043045986,-1524.0,0.00016,2]
[419246701,1775043045995,-1524.0,0.00016,2]
[419246702,1775043046005,-971304.0917685,0.00016,2]
[419246748,1775043047731,-506.93,0.00016,2]
[419246749,1775043048027,-624.68867735,0.00016,2]
[419246750,1775043048043,-3034.80276146,0.00016,2]
[419246751,1775043048487,-814.49029407,0.00012901,2]
[419246752,1775043048498,-1141.6,0.00012901,2]
[419246764,1775044232051,-400.0,0.00011818,2]
[419246765,1775044232067,-401.49,0.00011818,2]
[419246766,1775044232077,-696.40225197,0.0001203,2]
[419246767,1775044232089,-826.80774803,0.0001203,2]
[419246768,1775044232099,-195.0,0.0001203,2]
[419246769,1775044232109,-250.0,0.00012036,2]
[419246770,1775044232119,-250.0,0.0001204,2]
[419246771,1775044232129,-1200.0,0.00012042,2]
[419246772,1775044232138,-600.0,0.00012042,2]
[419246773,1775044232147,-5000.0,0.00012042,2]
[419246774,1775044232157,-600.0,0.00012043,2]
[419246775,1775044232167,-740.46865343,0.00012043,2]
[419246776,1775044232176,-1000.0,0.00012043,2]
[419246777,1775044232187,-320.39,0.00012102,2]
[419246778,1775044232196,-254.81756625,0.00012142,2]
[419246779,1775044232208,-245.18243375,0.00012142,2]
[419246780,1775044232217,-500.0,0.00012142,3]
[419246781,1775044232227,-500.0,0.00012142,4]
[419246782,1775044232236,-558.74,0.00012142,5]
[419246783,1775044232246,-260.2,0.00012257,2]
[419246784,1775044232259,-150.0,0.000123,2]
[419246785,1775044232269,-150.0,0.00012612,2]
[419246786,1775044232278,-3635.627,0.00012612,2]
[419246787,1775044232288,-171.124,0.00012612,2]
[419246788,1775044232299,-320.39,0.00012774,2]
[419246789,1775044232308,-410.16,0.00012797,2]
[419246790,1775044232318,-2511.07656625,0.00012801,2]
[419246791,1775044232418,-427.65,0.00012801,2]
[419246792,1775044232447,-255.51004428,0.00012801,2]
[419246793,1775044232458,-867.61452967,0.00012801,2]
[419246794,1775044232469,-6795.66958523,0.00012801,2]
[419246795,1775044232489,-1163.04741298,0.00012801,2]
[419246796,1775044232505,-403.96593801,0.00012801,2]
[419246800,1775044238091,-500.0,0.0001203,2]
[419246801,1775044238100,-255.03133183,0.00012801,2]
[419246834,1775044240133,-500.0,0.0001203,2]
[419246835,1775044240143,-13214.04036282,0.00012801,2]
[419246836,1775044240656,-4464.10322893,0.00012801,2]
[419246837,1775044240665,-505.0,0.00013111,2]
[419246838,1775044240675,-2500.0,0.00013129,2]
[419246839,1775044240685,-19163.59277965,0.00013133,2]
[419246840,1775044240696,-814.20934432,0.00013146,2]
[419246841,1775044240814,-191.7783722,0.00013146,2]
[419246842,1775044240825,-244.31812304,0.00013146,2]
[419246843,1775044240834,-500.0,0.00013221,2]
[419246844,1775044240843,-200.0,0.00013221,2]
[419246845,1775044240853,-500.0,0.00013221,2]
[419246846,1775044240863,-500.0,0.00013221,2]
[419246847,1775044240873,-500.0,0.00013221,2]
[419246848,1775044240883,-500.0,0.00013221,2]
[419246849,1775044240895,-500.0,0.00013221,2]
[419246850,1775044240905,-500.0,0.00013221,2]